bitfinex/quotes_BTCUSD_20240918
["timestamp","ask_amount","ask_price","bid_price","bid_amount"]
[1726674227435,0.80649669,59496.0,59495.0,0.00082]
[1726674227841,1.24265369,59496.0,59495.0,0.00082]
[1726674228691,0.336213,59487.0,59475.0,0.336271]
[1726674228910,0.168121,59481.0,59475.0,0.33627]
[1726674229134,0.168121,59481.0,59477.0,0.168132]
[1726674229135,0.17357887,59480.0,59477.0,0.168132]
[1726674229355,0.17357887,59480.0,59475.0,0.33627]
[1726674229356,0.02849796,59479.0,59475.0,0.33627]
[1726674229645,0.17357887,59479.0,59476.0,0.336266]
[1726674229878,0.16305367,59479.0,59478.0,0.504387]
[1726674230119,0.17558014,59479.0,59478.0,0.504387]
[1726674230355,0.19356975,59479.0,59478.0,0.504387]
[1726674230797,0.02851608,59479.0,59478.0,0.504387]
[1726674231225,0.02951608,59479.0,59478.0,0.841645]
[1726674231643,0.001,59479.0,59478.0,1.177903]
[1726674231927,0.001,59479.0,59478.0,1.200903]
[1726674232800,0.01052454,59489.0,59484.0,0.33622]
[1726674233005,0.02624166,59492.0,59491.0,0.504277]
[1726674233215,0.02857579,59492.0,59491.0,0.504277]
[1726674233427,0.05481915,59492.0,59491.0,0.840462]
[1726674233634,0.02857579,59492.0,59491.0,0.840462]
[1726674234256,0.02857579,59492.0,59491.0,0.168092]
[1726674234476,0.05781915,59492.0,59491.0,0.168092]
[1726674235087,0.05781915,59492.0,59491.0,0.504277]
[1726674235497,0.22087282,59492.0,59483.0,0.57097186]
[1726674235702,0.02624336,59489.0,59483.0,0.23474686]
[1726674235943,0.02857579,59488.0,59487.0,0.168103]
[1726674236154,0.01806723,59488.0,59487.0,0.50431]
[1726674236361,0.02859227,59488.0,59487.0,0.50431]
[1726674237417,0.02859227,59488.0,59487.0,0.840517]
[1726674237635,0.02625046,59492.0,59491.0,0.336185]
[1726674237890,0.02625046,59494.0,59493.0,0.168087]
[1726674238114,0.05485063,59494.0,59493.0,0.840435]
[1726674238360,0.02860017,59494.0,59493.0,0.840435]
[1726674238594,0.02860017,59494.0,59493.0,1.176609]
[1726674239241,0.0040663,59496.0,59495.0,0.840405]
[1726674239682,0.03269874,59496.0,59495.0,1.176567]
[1726674240729,0.0040663,59496.0,59495.0,1.176567]
[1726674240939,0.0060663,59496.0,59495.0,1.176567]
[1726674241386,0.01658893,59496.0,59495.0,1.176567]
[1726674241651,0.01658893,59496.0,59495.0,0.840405]
[1726674241904,0.01658893,59496.0,59493.0,0.336172]
[1726674242158,0.01658893,59496.0,59486.0,0.23474686]
[1726674242159,0.01813569,59495.0,59486.0,0.23474686]
[1726674242400,0.002,59494.0,59493.0,0.504261]
[1726674242856,0.02012807,59494.0,59493.0,0.504261]
[1726674243131,0.02865151,59494.0,59493.0,0.504261]
[1726674243357,0.02875286,59494.0,59493.0,0.840435]
[1726674243774,0.02875286,59494.0,59493.0,0.504261]
[1726674243997,0.16711997,59496.0,59495.0,0.168081]
[1726674244206,0.16911997,59496.0,59495.0,0.168081]
[1726674244415,0.22405787,59496.0,59495.0,0.168081]
[1726674244624,0.22405787,59496.0,59495.0,0.504243]
[1726674244625,0.19782787,59496.0,59495.0,0.504243]
[1726674244830,0.2269159,59496.0,59495.0,0.504243]
[1726674245042,0.22691045,59496.0,59495.0,0.504243]
[1726674245244,0.22691854,59496.0,59495.0,0.504243]
[1726674245512,0.17764368,59496.0,59495.0,0.504243]
[1726674245719,0.22205606,59496.0,59495.0,0.504243]
[1726674245938,0.19582923,59496.0,59495.0,0.504243]
[1726674246169,0.39605,59515.0,59509.0,0.33608]
[1726674246170,0.0771,59513.0,59509.0,0.33608]
[1726674246374,0.0771,59513.0,59492.0,0.23474686]
[1726674246375,0.0032361,59505.0,59504.0,0.840277]
[1726674246604,0.0032361,59505.0,59504.0,1.07502386]
[1726674247700,0.0032361,59505.0,59497.0,0.05020856]
[1726674247701,0.0971,59504.0,59497.0,0.05020856]
[1726674247933,0.26015367,59504.0,59500.0,0.336133]
[1726674248147,0.26015367,59504.0,59503.0,0.168058]
[1726674248356,0.26015367,59504.0,59503.0,0.504175]
[1726674249201,0.28070812,59504.0,59503.0,0.504175]
[1726674250265,0.28070812,59504.0,59503.0,0.168058]
[1726674250507,0.0815,59501.0,59493.0,0.00082]
[1726674250733,0.599652,59494.0,59493.0,0.00082]
[1726674250945,0.599652,59494.0,59478.0,0.00082]
[1726674250946,0.0934,59481.0,59478.0,0.00082]
[1726674251203,0.21280706,59480.0,59478.0,0.00082]
[1726674251445,0.002,59479.0,59478.0,0.168947]
[1726674251654,0.21654808,59479.0,59478.0,0.168947]
[1726674251861,0.21854808,59479.0,59478.0,0.168947]
[1726674252075,0.21854808,59479.0,59478.0,0.505205]
[1726674252313,0.16505367,59479.0,59478.0,0.505205]
[1726674252573,0.21852621,59479.0,59478.0,0.505205]
[1726674253553,0.21852621,59479.0,59478.0,0.168947]
[1726674254026,0.21852621,59479.0,59478.0,0.00082]
[1726674254294,1.069685,59479.0,59478.0,0.00082]
[1726674254507,1.17686455,59479.0,59478.0,0.00082]
[1726674254729,1.51311755,59479.0,59478.0,0.00082]
[1726674255167,1.51811755,59479.0,59478.0,0.00082]
[1726674255381,1.51808869,59479.0,59478.0,0.00082]
[1726674255809,0.002,59464.0,59460.0,0.0006654]
[1726674256019,0.002,59466.0,59465.0,0.168166]
[1726674256240,0.21868039,59466.0,59465.0,0.168166]
[1726674256449,0.21868039,59466.0,59465.0,0.504498]
[1726674256450,0.21668039,59466.0,59465.0,0.504498]
[1726674256891,0.05362672,59466.0,59465.0,0.84083]
[1726674257105,0.02062566,59466.0,59465.0,1.177162]
[1726674257743,0.01052778,59477.0,59476.0,0.168135]
[1726674257952,0.06421245,59477.0,59476.0,0.168135]
[1726674258234,0.002,59476.0,59473.0,0.23489767]
[1726674258449,0.002,59476.0,59472.0,0.168145]
[1726674258450,0.16305367,59475.0,59472.0,0.168145]
[1726674258687,0.16305367,59475.0,59470.0,0.168149]
[1726674258688,0.23503482,59475.0,59470.0,0.168149]
[1726674258915,0.23503482,59475.0,59468.0,0.336313]
[1726674258916,0.01829648,59474.0,59468.0,0.336313]
[1726674259129,0.18135015,59473.0,59470.0,0.16815]
[1726674259349,0.18135015,59473.0,59471.0,0.168149]
[1726674259350,0.16305367,59473.0,59471.0,0.168149]
[1726674259604,0.16305367,59473.0,59469.0,0.336307]
[1726674259605,0.008,59477.0,59476.0,0.33627]
[1726674259808,0.008,59477.0,59476.0,0.504405]
[1726674259809,0.18146089,59477.0,59476.0,0.504405]
[1726674260243,0.18146089,59477.0,59476.0,0.168135]
[1726674260470,0.18146089,59477.0,59473.0,0.336284]
[1726674260757,0.18146089,59476.0,59474.0,0.16814]
[1726674260972,0.01840722,59475.0,59474.0,0.16814]
[1726674261231,0.18136934,59475.0,59474.0,0.16814]
[1726674261467,0.18136934,59475.0,59470.0,0.336304]
[1726674261732,0.16305367,59474.0,59468.0,0.337134]
[1726674261997,0.16305367,59474.0,59473.0,0.168143]
[1726674262234,0.0907,59478.0,59473.0,0.336287]
[1726674262480,0.18137134,59477.0,59474.0,0.168139]
[1726674262714,0.01831767,59476.0,59474.0,0.168139]
[1726674262960,0.16305367,59475.0,59474.0,0.16814]
[1726674263709,0.18335608,59475.0,59474.0,0.504421]
[1726674263956,0.16305367,59475.0,59474.0,0.840702]
[1726674264439,0.007,59478.0,59477.0,0.168132]
[1726674264653,0.007,59478.0,59477.0,0.84066]
[1726674264876,0.007,59478.0,59477.0,1.176924]
[1726674265343,0.007,59478.0,59477.0,1.513188]
[1726674265788,0.007,59478.0,59477.0,1.536188]
[1726674266692,0.0974,59494.0,59493.0,0.504261]
[1726674266911,0.26045367,59494.0,59493.0,0.168087]
[1726674267135,0.27880817,59494.0,59493.0,0.168087]
[1726674267616,0.16809,59492.0,59488.0,0.1681]
[1726674267822,0.168096,59490.0,59482.0,0.33623]
[1726674268045,0.16305367,59491.0,59481.0,0.23489767]
[1726674268046,0.16305367,59489.0,59484.0,0.168111]
[1726674268293,0.002,59485.0,59481.0,0.23489767]
[1726674268493,0.002,59485.0,59484.0,0.168112]
[1726674268979,0.002,59486.0,59485.0,0.168109]
[1726674269196,0.002,59486.0,59485.0,0.504328]
[1726674269825,0.16305367,59489.0,59484.0,0.336224]
[1726674269826,0.002,59488.0,59487.0,0.168103]
[1726674270044,0.002,59493.0,59487.0,0.23489767]
[1726674270275,0.18139479,59492.0,59490.0,0.168093]
[1726674270486,0.01834112,59491.0,59490.0,0.168093]
[1726674270736,0.18139479,59491.0,59490.0,0.168093]
[1726674270973,0.18138899,59491.0,59484.0,0.336224]
[1726674271180,0.002,59483.0,59482.0,0.73925067]
[1726674271433,0.0948,59481.0,59473.0,0.336284]
[1726674271647,0.0948,59481.0,59476.0,0.168135]
[1726674271648,0.002,59477.0,59476.0,0.168135]
[1726674271869,0.002,59479.0,59476.0,0.336269]
[1726674272093,0.002,59479.0,59478.0,0.504387]
[1726674272334,0.16505367,59480.0,59479.0,0.840632]
[1726674272753,0.0805,59498.0,59476.0,0.23489767]
[1726674272754,0.092,59489.0,59478.0,0.00082]
[1726674272975,0.18333862,59488.0,59487.0,0.168102]
[1726674273827,0.18333862,59488.0,59487.0,0.504309]
[1726674274269,0.18333862,59488.0,59487.0,0.168102]
[1726674274702,0.002,59487.0,59486.0,0.168105]
[1726674274909,0.02028495,59487.0,59486.0,0.168105]
[1726674276217,0.002,59485.0,59484.0,0.16811]
[1726674276440,0.02028495,59485.0,59484.0,0.16811]
[1726674276888,0.170126,59479.0,59475.0,0.168136]
[1726674277070,0.170126,59479.0,59473.0,0.336282]
[1726674277358,0.170126,59479.0,59474.0,0.168139]
[1726674277359,0.18843994,59479.0,59474.0,0.168139]
[1726674277571,0.68774661,59479.0,59471.0,0.336297]
[1726674277798,1.02399961,59479.0,59470.0,0.3363]
[1726674277987,0.68774661,59479.0,59470.0,0.3363]
[1726674278224,0.71702384,59479.0,59468.0,0.337132]
[1726674278444,0.21264484,59479.0,59471.0,0.336295]
[1726674278667,0.71692277,59479.0,59472.0,0.336289]
[1726674278878,0.71692277,59479.0,59474.0,0.168138]
[1726674279093,0.21254377,59479.0,59476.0,0.168133]
[1726674279306,0.21254377,59479.0,59477.0,0.16813]
[1726674279503,0.002,59475.0,59474.0,0.504418]
[1726674279752,0.002,59477.0,59476.0,0.504405]
[1726674279972,0.05049322,59477.0,59476.0,0.505405]
[1726674280192,0.01926661,59477.0,59476.0,0.841675]
[1726674280619,0.01926661,59477.0,59476.0,0.505405]
[1726674280842,0.04854074,59477.0,59476.0,0.169135]
[1726674281517,0.04754074,59477.0,59476.0,0.504405]
[1726674282009,0.002,59479.0,59476.0,0.504405]
[1726674282254,0.002,59479.0,59459.0,0.09]
[1726674282255,0.01831174,59477.0,59473.0,0.336281]
[1726674282516,0.168133,59477.0,59472.0,0.336292]
[1726674282725,0.04760994,59476.0,59473.0,0.336286]
[1726674282996,0.33118267,59478.0,59474.0,0.504421]
[1726674282997,0.04760994,59475.0,59474.0,0.504421]
[1726674283221,0.02031174,59475.0,59474.0,0.16814]
[1726674283476,0.002,59474.0,59473.0,0.168142]
[1726674283742,0.01531174,59474.0,59473.0,0.168142]
[1726674283987,0.02922689,59476.0,59473.0,0.168142]
[1726674284202,0.02921841,59475.0,59474.0,0.168137]
[1726674284424,0.16305367,59476.0,59475.0,0.168137]
[1726674284643,0.16305367,59476.0,59475.0,0.40303467]
[1726674284644,0.19225315,59476.0,59475.0,0.40303467]
[1726674285067,0.19225315,59476.0,59475.0,0.73930967]
[1726674285545,0.16305367,59476.0,59475.0,0.73930967]
[1726674285764,0.19220819,59476.0,59475.0,0.73930967]
[1726674286407,0.19220819,59476.0,59475.0,0.40303467]
[1726674286625,0.16305367,59476.0,59475.0,0.40303467]
[1726674286849,0.16305367,59476.0,59470.0,0.23489767]
[1726674287066,0.02913966,59475.0,59470.0,0.23489767]
[1726674287288,0.02913966,59474.0,59472.0,0.168144]
[1726674287508,0.33118867,59476.0,59475.0,0.168137]
[1726674287509,0.16305367,59476.0,59475.0,0.168137]
[1726674287724,0.19429713,59476.0,59475.0,0.168137]
[1726674287944,0.19229713,59476.0,59475.0,0.168137]
[1726674288390,0.19229713,59476.0,59475.0,0.168957]
[1726674288652,0.36043213,59476.0,59475.0,0.00082]
[1726674288874,1.13159521,59476.0,59475.0,0.00082]
[1726674289312,1.16084598,59476.0,59475.0,0.00082]
[1726674289756,1.16484598,59476.0,59475.0,0.00082]
[1726674290044,1.16084598,59476.0,59475.0,0.00082]
[1726674291292,1.17184598,59476.0,59475.0,0.00082]
[1726674291501,1.16084598,59476.0,59475.0,0.00082]
[1726674293066,0.23257098,59476.0,59475.0,0.168957]
[1726674293504,0.23257098,59476.0,59475.0,0.505232]
[1726674293743,0.23257098,59476.0,59475.0,0.168957]
[1726674293958,0.72597598,59476.0,59475.0,0.00082]
[1726674294397,0.70471735,59476.0,59475.0,0.00082]
[1726674294846,0.36844735,59476.0,59475.0,0.00082]
[1726674295058,0.70497837,59476.0,59475.0,0.00082]
[1726674295921,0.72340366,59476.0,59475.0,0.00082]
[1726674296607,0.38713366,59476.0,59475.0,0.00082]
[1726674296813,0.21099866,59476.0,59475.0,0.00082]
[1726674297041,0.21099866,59476.0,59475.0,0.841507]
[1726674297247,0.22299866,59476.0,59475.0,0.841507]
[1726674297457,0.21099866,59476.0,59475.0,0.841507]
[1726674297683,0.04794499,59476.0,59475.0,0.841507]
[1726674297913,0.05894499,59476.0,59475.0,0.841507]
[1726674298116,0.0828,59482.0,59475.0,0.00082]
[1726674298346,0.04854161,59481.0,59475.0,0.00082]
[1726674298569,0.007,59476.0,59475.0,0.00082]
[1726674298829,0.007,59476.0,59475.0,0.01088867]
[1726674299037,0.02566937,59476.0,59475.0,0.00082]
[1726674299459,0.02566937,59476.0,59475.0,0.15740919]
[1726674299881,0.007,59476.0,59475.0,0.15740919]
[1726674300308,0.007,59476.0,59475.0,1.33437119]
[1726674300950,0.02547773,59476.0,59475.0,1.33437119]
[1726674301166,0.00164,59487.0,59486.0,0.168106]
[1726674301380,0.02011438,59487.0,59486.0,0.99712119]
[1726674301588,0.02011438,59487.0,59486.0,0.66090819]
[1726674301589,0.04967338,59487.0,59486.0,0.66090819]
[1726674302017,0.04967338,59487.0,59486.0,0.99712119]
[1726674302018,0.02011438,59487.0,59486.0,0.99712119]
[1726674302449,0.02011438,59487.0,59486.0,1.35633419]
[1726674302450,0.00164,59487.0,59486.0,1.35633419]
[1726674302689,0.00164,59487.0,59486.0,1.44217899]
[1726674302901,0.00164,59487.0,59486.0,1.7783648]
[1726674303134,0.00164,59487.0,59486.0,1.44434334]
[1726674303360,0.00164,59487.0,59486.0,1.46734334]
[1726674303574,0.00164,59495.0,59494.0,1.35617719]
[1726674303786,0.00164,59495.0,59494.0,1.69234519]
[1726674304251,0.00164,59495.0,59494.0,1.79506154]
[1726674304462,0.00164,59495.0,59494.0,1.79306154]
[1726674304709,0.00164,59495.0,59494.0,1.79506154]
[1726674305127,0.00164,59495.0,59494.0,1.8049437]
[1726674305378,0.00164,59495.0,59494.0,1.77965611]
[1726674306022,0.0032361,59505.0,59504.0,1.33297719]
[1726674306234,0.0032361,59505.0,59504.0,1.41091982]
[1726674306673,0.0031361,59505.0,59504.0,1.41091982]
[1726674307133,0.0031361,59505.0,59504.0,1.87003082]
[1726674307994,0.0031361,59505.0,59504.0,1.51091982]
[1726674308200,0.0031361,59505.0,59493.0,0.23453182]
[1726674308629,0.16305367,59504.0,59493.0,0.23453182]
[1726674309039,0.16305367,59504.0,59499.0,0.23453182]
[1726674309910,0.0031361,59505.0,59499.0,0.23453182]
[1726674310120,0.0031361,59505.0,59504.0,0.23453182]
[1726674310328,0.0041361,59505.0,59504.0,0.23453182]
[1726674310749,0.0031361,59505.0,59504.0,0.23453182]
[1726674310957,0.0031361,59505.0,59499.0,0.23453182]
[1726674311620,0.0031361,59505.0,59504.0,1.176388]
[1726674311861,0.0031361,59505.0,59504.0,1.41091982]
[1726674312070,0.001642,59524.0,59519.0,0.336027]
[1726674312290,0.001642,59524.0,59517.0,0.23453182]
[1726674312291,0.001642,59524.0,59521.0,0.504022]
[1726674312517,0.001642,59524.0,59521.0,0.168007]
[1726674312518,0.1002015,59522.0,59521.0,0.168007]
[1726674312734,0.1806015,59522.0,59520.0,0.168009]
[1726674312942,0.1806015,59522.0,59521.0,0.168007]
[1726674313389,0.1806015,59522.0,59521.0,0.840037]
[1726674313593,0.1856015,59522.0,59521.0,0.504022]
[1726674313803,0.1806015,59522.0,59521.0,0.168007]
[1726674314014,0.1806015,59522.0,59520.0,0.16801]
[1726674314220,0.1806015,59522.0,59518.0,0.336028]
[1726674314221,0.35365517,59522.0,59521.0,0.168007]
[1726674315301,0.35365517,59522.0,59521.0,0.504022]
[1726674315515,0.35365517,59522.0,59512.0,0.23453182]
[1726674315764,0.51330217,59522.0,59518.0,0.168015]
[1726674315979,0.16725405,59521.0,59507.0,0.336094]
[1726674316188,0.16725405,59521.0,59501.0,0.33453182]
[1726674316189,0.336057,59514.0,59501.0,0.23453182]
[1726674316426,0.1822435,59522.0,59496.0,0.23453182]
[1726674316427,0.0985,59510.0,59496.0,0.23453182]
[1726674316666,0.16305367,59509.0,59500.0,0.336133]
[1726674316870,0.16305367,59509.0,59496.0,0.23453182]
[1726674317093,0.16305367,59509.0,59502.0,0.336122]
[1726674317351,0.16305367,59509.0,59501.0,0.23453182]
[1726674317558,0.0985,59510.0,59509.0,0.168041]
[1726674317764,0.0985,59510.0,59509.0,0.840207]
[1726674318409,0.0985,59510.0,59509.0,0.504124]
[1726674318868,0.11893264,59510.0,59509.0,0.504124]
[1726674319286,0.11893264,59510.0,59509.0,0.168041]
[1726674319594,0.31464054,59510.0,59503.0,0.336112]
[1726674319826,0.33109667,59509.0,59505.0,0.168052]
[1726674320047,0.02043264,59508.0,59506.0,0.16805]
[1726674320260,0.18348631,59507.0,59506.0,0.168049]
[1726674320904,0.35153531,59507.0,59503.0,0.168057]
[1726674321124,0.35153531,59507.0,59498.0,0.336142]
[1726674321125,0.02043264,59506.0,59498.0,0.336142]
[1726674321357,0.0985,59510.0,59485.0,0.08004476]
[1726674321358,0.168073,59498.0,59493.0,0.168084]
[1726674321584,0.18768853,59497.0,59480.0,0.23453182]
[1726674321788,0.0914,59489.0,59483.0,0.336225]
[1726674322004,0.0914,59489.0,59480.0,0.23453182]
[1726674322005,0.02043264,59488.0,59487.0,0.50431]
[1726674323487,0.25445367,59489.0,59488.0,0.168101]
[1726674323907,0.3073063,59489.0,59488.0,0.168101]
[1726674324139,0.3073063,59489.0,59488.0,0.504303]
[1726674324355,0.14425263,59489.0,59488.0,0.840505]
[1726674324585,0.02032778,59489.0,59488.0,1.176707]
[1726674324797,0.02232778,59489.0,59488.0,1.176707]
[1726674325006,0.002,59489.0,59488.0,1.176707]
[1726674326064,0.0941,59498.0,59485.0,0.57074782]
[1726674326278,0.0941,59498.0,59497.0,0.73875782]
[1726674326486,0.15747713,59498.0,59497.0,0.73875782]
[1726674326941,0.14695338,59498.0,59497.0,0.73875782]
[1726674327369,0.15747712,59498.0,59497.0,0.73875782]
[1726674328231,0.17538839,59498.0,59497.0,0.73875782]
[1726674328576,0.17538839,59498.0,59495.0,0.504237]
[1726674328577,0.17738839,59498.0,59497.0,0.168075]
[1726674328933,0.17238839,59498.0,59497.0,0.504226]
[1726674329875,0.17038839,59498.0,59497.0,0.168075]
[1726674330105,0.17038839,59498.0,59497.0,0.504226]
[1726674330106,0.17638839,59498.0,59497.0,0.504226]
[1726674330325,0.17638839,59498.0,59497.0,0.168075]
[1726674330517,0.17631711,59498.0,59497.0,0.504226]
[1726674330870,0.33337078,59498.0,59497.0,0.168075]
[1726674331075,0.33337078,59498.0,59497.0,0.504226]
[1726674331281,0.33637078,59498.0,59497.0,0.504226]
[1726674331685,0.34934273,59498.0,59497.0,0.168075]
[1726674332151,0.34934273,59498.0,59497.0,0.840377]
[1726674332319,0.34934273,59498.0,59497.0,0.504226]
[1726674332890,0.34934273,59498.0,59497.0,0.840377]
[1726674333142,0.34934273,59498.0,59497.0,0.168075]
[1726674333334,0.34634273,59498.0,59497.0,0.504226]
[1726674333538,0.34834273,59498.0,59497.0,0.504226]
[1726674333958,0.34833153,59498.0,59497.0,0.168075]
[1726674334188,0.34833153,59498.0,59497.0,0.504226]
[1726674334394,0.34833714,59498.0,59497.0,0.504226]
[1726674335722,0.07828316,59498.0,59497.0,1.41105982]
[1726674335950,0.02620685,59507.0,59497.0,0.58223094]
[1726674336179,0.25211143,59517.0,59516.0,0.504066]
[1726674336383,0.01052072,59521.0,59520.0,0.16801]
[1726674336384,0.17357439,59521.0,59520.0,0.16801]
[1726674336586,0.21785602,59521.0,59520.0,0.16801]
[1726674336795,0.19164917,59521.0,59520.0,0.504031]
[1726674336999,0.21785602,59521.0,59520.0,0.504031]
[1726674337201,0.19164917,59521.0,59520.0,0.504031]
[1726674337406,0.0285955,59521.0,59520.0,0.504031]
[1726674337587,0.0285955,59521.0,59520.0,0.840052]
[1726674337822,0.0355955,59521.0,59520.0,0.504031]
[1726674338070,0.0355955,59521.0,59520.0,1.07447547]
[1726674338294,0.007,59521.0,59520.0,1.41049647]
[1726674339348,0.007,59521.0,59520.0,1.45710453]
[1726674339578,0.007,59521.0,59520.0,1.48010453]
[1726674339786,0.00864,59521.0,59520.0,1.43349647]
[1726674339997,0.00864,59521.0,59520.0,1.48010453]
[1726674340218,0.00864,59521.0,59520.0,2.00758167]
[1726674340419,0.00164,59521.0,59520.0,1.72855014]
[1726674340621,0.00164,59521.0,59520.0,2.34560267]
[1726674341091,0.001542,59524.0,59523.0,1.331014]
[1726674341289,0.33281401,59542.0,59523.0,1.331014]
[1726674341290,0.33281401,59542.0,59539.0,0.503871]
[1726674341497,0.33281401,59542.0,59539.0,0.839785]
[1726674341709,0.01674497,59540.0,59539.0,0.839785]
[1726674341923,0.0055435,59540.0,59539.0,0.55047906]
[1726674342130,0.0055435,59540.0,59536.0,0.335927]
[1726674342364,0.0055435,59540.0,59538.0,0.167958]
[1726674342566,0.01120147,59539.0,59538.0,0.167958]
[1726674342698,0.01120147,59539.0,59538.0,0.503877]
[1726674342897,0.0055435,59540.0,59539.0,0.167957]
[1726674343324,0.0055435,59540.0,59536.0,0.335927]
[1726674343325,0.0055435,59540.0,59537.0,0.16796]
[1726674343713,0.01674497,59540.0,59533.0,0.23442347]
[1726674344137,0.18469997,59540.0,59533.0,0.23442347]
[1726674344334,0.01774497,59540.0,59538.0,0.167958]
[1726674344579,0.01774497,59540.0,59539.0,0.167957]
[1726674345713,0.01774497,59540.0,59533.0,0.23442347]
[1726674346173,0.0322102,59539.0,59533.0,0.23442347]
[1726674346377,0.0322102,59538.0,59537.0,0.167962]
[1726674346593,0.04247098,59538.0,59537.0,0.167962]
[1726674347555,0.04247098,59538.0,59533.0,0.23442347]
[1726674347556,0.04247098,59538.0,59534.0,0.335942]
[1726674347774,0.0322102,59537.0,59536.0,0.167965]
[1726674348011,0.0322102,59537.0,59535.0,0.167966]
[1726674348012,0.05232074,59537.0,59535.0,0.167966]
[1726674348230,0.03037605,59537.0,59535.0,0.167968]
[1726674348445,0.05232074,59536.0,59535.0,0.167968]
[1726674348880,0.05232074,59536.0,59530.0,0.335959]
[1726674348881,0.21537441,59536.0,59530.0,0.335964]
[1726674349099,0.21537441,59536.0,59523.0,0.23442347]
[1726674349100,0.30967441,59535.0,59523.0,0.23442347]
[1726674349312,0.167978,59532.0,59528.0,0.167987]
[1726674349548,0.21537441,59531.0,59524.0,0.335996]
[1726674349770,0.05232074,59530.0,59526.0,0.167992]
[1726674349984,0.02011054,59529.0,59528.0,0.167988]
[1726674350415,0.01025829,59529.0,59528.0,0.167988]
[1726674350632,0.03035443,59529.0,59528.0,0.167988]
[1726674350922,0.02009614,59529.0,59528.0,0.167988]
[1726674351138,0.02007411,59529.0,59523.0,0.23442347]
[1726674351385,0.02007411,59528.0,59523.0,0.23442347]
[1726674351609,0.16305367,59531.0,59528.0,0.167986]
[1726674351829,0.172977,59532.0,59517.0,0.05007729]
[1726674351830,0.0777,59529.0,59517.0,0.05007729]
[1726674352041,0.336019,59521.0,59508.0,0.28450076]
[1726674352261,0.21524278,59520.0,59515.0,0.168024]
[1726674352479,0.168017,59518.0,59508.0,0.23442347]
[1726674352695,0.0971,59516.0,59503.0,0.23442347]
[1726674352908,0.21524278,59515.0,59503.0,0.23442347]
[1726674353129,0.21524278,59515.0,59507.0,0.168046]
[1726674353130,0.168036,59511.0,59507.0,0.168046]
[1726674353361,0.0971,59516.0,59497.0,0.00082]
[1726674353362,0.168069,59500.0,59497.0,0.00082]
[1726674353591,0.168057,59504.0,59497.0,0.00082]
[1726674353853,0.0971,59502.0,59497.0,0.00082]
[1726674354076,0.50338458,59501.0,59497.0,0.00082]
[1726674354336,0.21557764,59501.0,59497.0,0.00082]
[1726674354563,0.168071,59499.0,59497.0,0.00082]
[1726674354792,0.16305367,59498.0,59497.0,0.00082]
[1726674355011,0.17276721,59498.0,59497.0,0.00082]
[1726674355227,0.1929621,59498.0,59497.0,0.00082]
[1726674355711,0.3610341,59498.0,59497.0,0.00082]
[1726674355960,0.22525498,59498.0,59497.0,0.00082]
[1726674356682,0.1929621,59498.0,59497.0,0.00082]
[1726674357361,0.1929621,59498.0,59497.0,0.168895]
[1726674357362,0.02990843,59498.0,59497.0,0.168895]
[1726674357612,0.02990843,59498.0,59497.0,0.841197]
[1726674357833,0.02990843,59498.0,59497.0,0.505046]
[1726674357834,0.03084835,59498.0,59497.0,0.505046]
[1726674358069,0.03084835,59498.0,59497.0,0.168895]
[1726674358070,0.001,59498.0,59497.0,0.168895]
[1726674358289,0.35226366,59498.0,59497.0,0.00082]
[1726674358530,0.16405367,59498.0,59497.0,0.00082]
[1726674358753,0.18319166,59498.0,59497.0,0.00082]
[1726674358989,0.01046811,59498.0,59497.0,0.841197]
[1726674359214,0.01046811,59498.0,59497.0,1.177348]
[1726674359434,0.001,59498.0,59497.0,1.177348]
[1726674359875,0.336084,59509.0,59497.0,1.177348]
[1726674359876,0.168048,59507.0,59502.0,0.168059]
[1726674360095,0.21568166,59506.0,59503.0,0.168057]
[1726674360310,0.02024153,59505.0,59500.0,0.336134]
[1726674360528,0.02024153,59505.0,59501.0,0.168062]
[1726674360757,0.16806,59503.0,59497.0,0.00082]
[1726674360976,0.16305367,59504.0,59497.0,0.00082]
[1726674360977,0.168072,59498.0,59497.0,0.00082]
[1726674361242,0.35136902,59498.0,59497.0,0.00082]
[1726674361485,1.1615543,59498.0,59497.0,0.00082]
[1726674361705,1.2422543,59498.0,59497.0,0.00082]
[1726674361929,1.2527788,59498.0,59497.0,0.00082]
[1726674362157,1.27089275,59498.0,59497.0,0.00082]
[1726674362625,1.27989275,59498.0,59497.0,0.00082]
[1726674362856,1.27089275,59498.0,59497.0,0.00082]
[1726674363305,0.8624398,59498.0,59497.0,0.00082]
[1726674363526,0.94361638,59498.0,59497.0,0.00082]
[1726674363969,0.91500063,59498.0,59497.0,0.00082]
[1726674364189,1.25114563,59498.0,59497.0,0.00082]
[1726674364408,0.91500063,59498.0,59497.0,0.00082]
[1726674364851,1.25114563,59498.0,59497.0,0.00082]
[1726674365073,0.91500063,59498.0,59497.0,0.00082]
[1726674365329,1.25114563,59498.0,59497.0,0.00082]
[1726674365752,0.91500063,59498.0,59497.0,0.00082]
[1726674365969,1.25114563,59498.0,59497.0,0.00082]
[1726674367122,0.91500063,59498.0,59497.0,0.00082]
[1726674367376,0.41078363,59498.0,59497.0,0.00082]
[1726674367632,0.56985563,59498.0,59497.0,0.00082]
[1726674367881,0.3794385,59498.0,59497.0,0.00082]
[1726674368130,0.02968483,59498.0,59497.0,0.73977242]
[1726674368346,0.00946913,59498.0,59497.0,0.73977242]
[1726674368556,0.00946913,59498.0,59497.0,1.41207442]
[1726674368557,0.009,59498.0,59497.0,1.41207442]
[1726674369244,0.009,59498.0,59497.0,1.07592342]
[1726674369687,0.009,59498.0,59497.0,1.41207442]
[1726674369901,0.009,59498.0,59497.0,1.07592342]
[1726674370845,0.168054,59505.0,59501.0,0.168062]
[1726674371131,0.168064,59502.0,59497.0,0.00082]
[1726674371345,0.55177735,59501.0,59497.0,0.00082]
[1726674371558,0.16807,59499.0,59497.0,0.00082]
[1726674371779,0.21564735,59498.0,59497.0,0.00082]
[1726674371999,0.18328327,59498.0,59497.0,0.00082]
[1726674372214,0.19271591,59498.0,59497.0,0.00082]
[1726674373359,1.06546536,59498.0,59497.0,0.00082]
[1726674373588,1.19396505,59498.0,59497.0,0.00082]
[1726674373829,1.53011005,59498.0,59497.0,0.00082]